[Event "ITT 1st Parada Jamundi 2022"]
[Site "Jamundi Valle"]
[Date "2022.12.09"]
[Round "6.17"]
[White "Navia Alvarez, Edwin Adrian"]
[Black "Valencia, Dario"]
[Result "1-0"]
[ECO "B38"]
[WhiteElo "2023"]
[BlackElo "1841"]
[Annotator "TA"]
[PlyCount "85"]
[EventDate "2022.12.05"]
[EventType "swiss"]
[EventCountry "COL"]
[SourceTitle "playchess.com"]
[Source "ChessBase"]
[SourceQuality "1"]
[TimeControl "5400+30"]

{[%evp 19,85,36,41,28,38,16,37,51,37,53,60,10,8,0,0,-4,-4,0,0,0,0,-56,-57,-55,-50,-56,-30,-24,-25,-47,-13,-12,-16,-16,-16,-11,-14,-31,-29,-32,0,0,6,0,0,0,23,17,77,40,44,44,44,52,77,77,77,78,77,77,104,69,114,114,149,149,106,69]} 1. e4 {[%emt 0:07:45]} c5 {[%emt 0:00:29]} 2. Nf3 {[%emt 0:00:05]} a6 {[%emt 0:00:11]} 3. c4 {[%emt 0:00:05]} d6 {[%emt 0:00:20]} 4. d4 {[%emt 0:00:05]} cxd4 {[%emt 0:00:28]} 5. Nxd4 {[%emt 0:00:03]} Nf6 {[%emt 0:00:19]} 6. Nc3 {[%emt 0:00:03]} Nc6 {[%emt 0:01:46]} 7. Be2 {[%emt 0:00:15]} g6 {[%emt 0:00:17]} 8. Be3 {[%emt 0:00:25]} Bg7 {[%emt 0:00:23]} 9. O-O {[%emt 0:00:39]} O-O {[%emt 0:02:01]} 10. h3 {[%emt 0:00:10]} Bd7 {[%emt 0:02:04][%cal Ob7b5]} 11. Qc2 {[%emt 0:08:27] B38: Sicilian: Maroczy Bind with 5...Bg7 and 7...0-0.} Rc8 {[%emt 1:27:42][%cal Of6g4]} 12. Rad1 {[%emt 0:01:19]} Qa5 {[%emt 0:00:00]} 13. Nb3 {[%emt 0:03:42] White is slightly better.} Qc7 {[%emt 0:00:00] [#]} 14. f4 $146 {[%emt 0:11:05]} ({Predecessor:} 14. Rc1 Ne5 15. c5 dxc5 16. Nxc5 Bc6 17. f4 Ned7 18. Nxd7 Nxd7 19. Nd5 Qd8 20. Qb3 e6 21. Nb6 Nxb6 22. Bxb6 Bd4+ 23. Bxd4 Qxd4+ 24. Kh2 Qxe4 25. Rce1 Qxg2# {0-1 (25) Escudero Donoso,F (2119)-Virtanen,T (2284) Chess.com INT 2022}) 14... Na5 {[%emt 0:00:00]} 15. c5 {[%emt 0:05:03]} (15. Nxa5 $14 Qxa5 16. Qb3) 15... Nxb3 $11 {[%emt 0:00:00]} 16. cxd6 {[%emt 0:34:43]} exd6 {[%emt 0:00:00] [#] aiming for ...Nc5.} 17. Qxb3 {[%emt 0:00:30]} b5 {[%emt 0:00:00][%cal Bb7b5,Bb5b4][%mdl 32]} 18. Qa3 {[%emt 0:04:47]} Rfe8 {[%emt 0:00:00]} 19. Bf3 {[%emt 0:02:24]} Bc6 {[%emt 0:00:00]} 20. Nd5 {[%emt 0:06:17]} ({Better is} 20. Qxa6 $11 Nxe4 21. Nxb5 Bxb5 22. Qxb5) 20... Bxd5 $15 {[%emt 0:00:00]} 21. exd5 {[%emt 0:00:14]} b4 {[%emt 0:00:00]} 22. Qd3 {[%emt 0:04:39]} Qc4 {[%emt 0:00:00] Against Rc1} 23. Qxc4 {[%emt 0:04:05]} Rxc4 {[%emt 0:00:00]} 24. Rd4 {[%emt 0:02:03]} Rc2 {[%emt 0:00:00]} (24... Rxd4 {simplifies} 25. Bxd4 Nd7 26. Bxg7 Kxg7 27. Kf2 Rc8) 25. Rf2 {[%emt 0:00:42]} Rcc8 {[%emt 0:00:00]} 26. Re2 {[%emt 0:00:21]} a5 {[%emt 0:00:00]} 27. Kf2 {[%emt 0:01:04]} Nd7 {[%emt 0:00:00]} 28. Re4 {[%emt 0:00:29]} Rxe4 {[%emt 0:00:00]} 29. Bxe4 {[%emt 0:00:02]} f5 {[%emt 0:00:10]} (29... Nc5 $5 {[%cal Rc5e4]} 30. Bxc5 Rxc5 $11) 30. Bd3 {[%emt 0:02:53]} Nf6 {[%emt 0:01:15]} 31. Rc2 {[%emt 0:00:30]} Rxc2+ {[%emt 0:02:38]} 32. Bxc2 $11 {[%emt 0:00:01][%mdl 4096] Endgame KBB-KBN} Nd7 {[%emt 0:00:13] Prevents Bb6.} (32... Nxd5 $2 33. Bb3 $18) 33. b3 {[%emt 0:00:25]} Nc5 {[%emt 0:00:31]} (33... Nf6 $11) 34. Ke2 {[%emt 0:00:32]} Kf7 {[%emt 0:00:27]} 35. g4 {[%emt 0:00:07]} fxg4 $1 {[%emt 0:01:34]} 36. hxg4 {[%emt 0:00:02]} Bc3 {[%emt 0:02:02]} 37. g5 {[%emt 0:00:23]} Kg7 {[%emt 0:01:53]} 38. Kf3 {[%emt 0:00:33]} Kf7 {[%emt 0:01:24]} 39. Kg4 {[%emt 0:00:14]} Nd7 {[%emt 0:00:16]} 40. Bb1 {[%emt 0:01:12]} Kg7 {[%emt 0:00:56]} 41. Bd3 {[%emt 0:00:52]} Bb2 {[%emt 0:00:21]} 42. Bb5 {[%emt 0:00:26]} Nc5 {[%emt 0:01:11]} 43. f5 {[%emt 0:02:19] Weighted Error Value: White=0.10 (very precise) /Black=0.13 (very precise)} 1-0

[Event "ITT 1st Parada Jamundi 2022"]
[Site "Jamundi Valle"]
[Date "2022.12.09"]
[Round "6.18"]
[White "Borrero, Alexander"]
[Black "Hernandez Bermudez, Manuela"]
[Result "1-0"]
[ECO "B51"]
[WhiteElo "1988"]
[BlackElo "1815"]
[Annotator "TA"]
[PlyCount "77"]
[EventDate "2022.12.05"]
[EventType "swiss"]
[EventCountry "COL"]
[SourceTitle "playchess.com"]
[Source "ChessBase"]
[SourceQuality "1"]
[TimeControl "5400+30"]

{[%evp 9,77,16,12,0,0,0,15,0,0,0,0,0,0,1,36,36,86,19,10,-36,-27,-73,43,27,166,4,12,0,0,-16,137,144,162,178,119,89,61,33,71,0,102,70,110,78,225,224,220,220,214,242,660,337,642,637,835,856,846,838,814,802,802,630,950,943,933,925,2284,854,5406,5391]} 1. e4 {[%emt 0:01:30]} c5 {[%emt 0:00:26]} 2. Nf3 {[%emt 0:00:56]} d6 {[%emt 0:00:18]} 3. Bb5+ {[%emt 0:00:35]} Nd7 {[%emt 0:00:25]} 4. d4 {[%emt 0:00:37]} cxd4 {[%emt 0:00:13]} 5. Nxd4 {[%emt 0:00:14]} a6 {[%emt 0:01:15]} 6. Bxd7+ {[%emt 0:06:11] B51: Sicilian: Moscow Variation (3 Bb5+) without 3...Bd7.} Bxd7 {[%emt 0:00:03]} 7. Nc3 {[%emt 0:00:12]} g6 {[%emt 0:04:01] [#]} 8. Qd3 $146 {[%emt 0:08:37] The position is equal.} ({Predecessor:} 8. Be3 Bg7 9. O-O Rc8 10. Qd2 Nf6 11. f3 b5 12. a3 O-O 13. Kh1 Rc4 14. Rad1 {½-½ (31) Lauer,F (1203)-Slavin,P (1265) LSS email 2015}) 8... Bg7 {[%emt 0:01:53]} 9. Be3 {[%emt 0:06:17]} Nf6 {[%emt 0:01:03]} 10. f3 {[%emt 0:00:25] Prevents Ng4.} O-O {[%emt 0:03:32]} 11. g4 {[%emt 0:01:09]} Bc6 {[%emt 0:09:54]} (11... Be6 {simplifies} 12. Qd2 d5 13. Nxe6 fxe6 14. O-O-O dxe4 15. Nxe4 Nxe4 16. Qxd8 Raxd8 17. fxe4 Rxd1+ 18. Rxd1 Rf3) 12. O-O-O {[%emt 0:08:38]} Qb8 {[%emt 0:05:58]} (12... Qc7 $14) 13. h4 {[%emt 0:01:52]} (13. Qd2 $16) 13... d5 $1 $11 {[%emt 0:01:28]} 14. h5 {[%emt 0:17:03]} (14. g5 $11 dxe4 15. fxe4) 14... dxe4 $15 {[%emt 0:10:16]} 15. fxe4 {[%emt 0:00:19]} (15. Nxe4 $11 Nxe4 16. hxg6 hxg6 17. fxe4) 15... Qe5 {[%emt 0:15:03]} ({Black should play} 15... Nxg4 $17 16. hxg6 fxg6) 16. hxg6 $14 {[%emt 0:06:28]} fxg6 {[%emt 0:04:55]} (16... hxg6 $11 {and Black is okay.} 17. Nxc6 bxc6) 17. Nxc6 $2 {[%emt 0:01:19]} (17. Qc4+ $18 Rf7 18. Ne6 (18. Nxc6 bxc6 19. Qxc6 Raf8 $16) 18... Nxe4 19. Bd4) 17... bxc6 $11 {[%emt 0:00:02]} 18. Bd4 {[%emt 0:02:29]} Qg5+ {[%emt 0:00:07]} 19. Kb1 {[%emt 0:00:10]} Qxg4 $2 {[%emt 0:01:35]} (19... Nxg4 $11 20. Qc4+ (20. Qh3 h5 $17) 20... Kh8) 20. Qc4+ $16 {[%emt 0:00:41]} Kh8 {[%emt 0:00:08]} 21. Rdg1 $36 {[%emt 0:03:53][%mdl 3072] White has strong compensation. White is in control.} (21. Qxc6 $6 Qc8 22. Qa4 Qe6 $14) 21... Qf3 {[%emt 0:00:02]} 22. Rf1 {[%emt 0:00:17]} (22. Qe6 {looks sharper.} Rad8 23. Be5 Rd2 24. a3) 22... Qg4 {[%emt 0:01:19]} 23. Rhg1 {[%emt 0:02:34] White is more active.} Qh3 {[%emt 0:01:28]} 24. Rh1 {[%emt 0:01:30]} (24. Qxc6 Rfc8 25. Qb7 Qd7 26. Qxd7 Nxd7 $11) ({White should try} 24. Ne2 $16) 24... Qg2 {[%emt 0:00:43]} (24... Qg4 $11 {keeps the balance.}) 25. Qe6 {[%emt 0:02:32]} (25. Qxc6 $2 Nxe4 $1 $19 {[%mdl 512]}) 25... Rae8 $1 {[%emt 0:02:26][%cal Of6e4]} 26. a3 {[%emt 0:00:40]} (26. Qxc6 $2 Nxe4 $1 $19 {[%mdl 512]}) 26... Nh5 {[%emt 0:03:48]} (26... Qg4 $16 27. Qc4 (27. Qxc6 e5 $14) 27... e5) 27. Rfg1 $18 {[%emt 0:02:10]} Qf3 {[%emt 0:00:31]} 28. Bxg7+ {[%emt 0:03:24]} Kxg7 {[%emt 0:00:01] [#]} 29. Qe5+ {[%emt 0:02:19]} ({Don't do} 29. Qxc6 $6 Qf6 30. Qc5 Nf4 $16) 29... Kh6 $2 {[%emt 0:00:05]} (29... Nf6 30. Qg5 (30. Rf1 Qe3 $16) 30... Kh8 31. Qxg6 Rg8) 30. Qg5+ {[%emt 0:00:35][%mdl 64] Deflection} Kg7 {[%emt 0:00:20]} 31. Rxh5 {[%emt 0:00:39] White is clearly winning.} Qxh5 {[%emt 0:01:01]} 32. Qxh5 {[%emt 0:00:15]} Rf1+ {[%emt 0:00:04]} 33. Ka2 {[%emt 0:00:30]} Rxg1 {[%emt 0:00:05]} 34. Qe5+ {[%emt 0:00:24]} Kf7 {[%emt 0:02:11]} 35. Ne2 {[%emt 0:00:42]} Rg4 {[%emt 0:00:47]} 36. Nd4 {[%emt 0:01:40] Hoping for Qe6+.} h5 {[%emt 0:00:04]} 37. Nxc6 {[%emt 0:00:45]} h4 {[%emt 0:01:06]} 38. Qd4 {[%emt 0:00:24]} (38. Qd5+ $142 Kf6 39. Qd7 Rxe4 40. Qxe8) 38... Kg8 {[%emt 0:01:37]} 39. Qd7 {[%emt 0:00:14][%csl LRe7,LRe8,LRg4] Weighted Error Value: White=0.35/Black=0.56} 1-0

[Event "ITT 1st Parada Jamundi 2022"]
[Site "Jamundi Valle"]
[Date "2022.12.08"]
[Round "6.19"]
[White "Idrobo, Juan Manuel"]
[Black "Cortes Castro, Jhonny"]
[Result "0-1"]
[ECO "B13"]
[WhiteElo "1809"]
[BlackElo "1954"]
[Annotator "TA"]
[PlyCount "54"]
[EventDate "2022.12.05"]
[EventType "swiss"]
[EventCountry "COL"]
[SourceTitle "playchess.com"]
[Source "ChessBase"]
[SourceQuality "1"]
[TimeControl "5400+30"]

{[%evp 9,54,18,23,24,24,0,12,16,14,6,20,0,0,-12,-6,-13,0,-15,-18,-27,0,0,0,-27,0,-102,-110,-106,-98,-102,0,-24,0,-71,-80,-123,-94,-102,-104,-110,-112,-113,-93,-29956,-5560,-29998,-29999]} 1. e4 {[%emt 0:02:58]} c6 {[%emt 0:00:04]} 2. Nf3 {[%emt 0:00:38]} d5 {[%emt 0:00:09]} 3. exd5 {[%emt 0:00:36]} cxd5 {[%emt 0:00:06]} 4. d4 {[%emt 0:00:16]} Bf5 {[%emt 0:00:13]} 5. Bb5+ {[%emt 0:01:43]} Nd7 {[%emt 0:00:02]} 6. O-O {[%emt 0:00:37] B13: Caro-Kann: Exchange Variation and Panov-Botvinnik Attack.} Ngf6 {[%emt 0:00:37]} 7. Bf4 {[%emt 0:03:41]} a6 {[%emt 0:00:08]} 8. Bd3 {[%emt 0:02:15] The position is equal.} Bxd3 {[%emt 0:00:21]} 9. Qxd3 {[%emt 0:00:13]} e6 {[%emt 0:00:01]} 10. Nbd2 {[%emt 0:01:02]} Be7 {[%emt 0:00:13] [#]} 11. Rae1 $146 {[%emt 0:06:10][%cal Ba1e1,Be1e3,Be3h3][%mdl 32]} ({Predecessor:} 11. c3 O-O 12. Rfe1 Rc8 13. Bg5 Re8 14. Ne5 Nxe5 15. dxe5 Nd7 16. Bxe7 Qxe7 17. Nf3 Nc5 18. Qe3 Ne4 19. Rad1 Qc5 20. Rd4 Qb6 21. Rxe4 Qxb2 22. Rb4 {1-0 (22) Vidic,S (2271)-Horvat,S (2075) Subotica 2007}) 11... O-O {[%emt 0:00:14]} 12. Ne5 {[%emt 0:01:28]} Rc8 {[%emt 0:01:19]} 13. Re3 {[%emt 0:03:24]} Nxe5 {[%emt 0:03:08]} 14. Bxe5 {[%emt 0:03:10]} Ng4 {[%emt 0:02:11]} (14... Qb6 {simplifies} 15. Nb3 Qb5 16. Bxf6 Bxf6 17. c3 Qxd3 18. Rxd3 Be7) 15. Rh3 {[%emt 0:01:26][%csl Gh3][%cal Rd3h7]} g6 {[%emt 0:00:11]} 16. Bf4 {[%emt 0:13:58]} Bd6 {[%emt 0:02:05]} 17. Bh6 {[%emt 0:08:31]} (17. Bxd6 $11 Qxd6 18. c3) 17... Nxh6 $17 {[%emt 0:00:22]} 18. Rxh6 {[%emt 0:00:19] [#]} Bf4 $1 {[%emt 0:00:12]} 19. Rh3 {[%emt 0:02:23]} Bg5 {[%emt 0:02:25]} (19... Qa5 $17 20. Nf3 Qxa2) 20. f4 {[%emt 0:01:25]} Bf6 {[%emt 0:00:07][%cal Bg5f6,Bf6g7,Bg7d4][%mdl 32]} (20... Be7 $5 {[%cal Rd8b6]}) 21. Nf3 {[%emt 0:00:52] [#]} (21. c3 $11 {keeps the balance.}) 21... Qb6 $1 $36 {[%emt 0:01:30][%mdl 2048] Black is in control.} 22. b3 {[%emt 0:03:32]} Qa5 {[%emt 0:01:51] Prevents c3. Threatens to win with ...Rc3.} 23. Ng5 {[%emt 0:06:27] [#]} Rc3 $3 {[%emt 0:01:09][%mdl 512]} 24. Qd2 {[%emt 0:04:27]} Rfc8 {[%emt 0:00:58][%cal Oa5b6] White must now prevent ...Qb6!} 25. Nxh7 {[%emt 0:01:49]} Bg7 {[%emt 0:00:02][%cal Oa5b6] ...Qb6! is the strong threat. Black is more active.} 26. Rff3 $2 {[%emt 0:07:34][%mdl 8192]} (26. Rd1 $17) 26... Rxf3 {[%emt 0:00:00][%mdl 64] Discovered Attack} 27. Qxa5 {[%emt 0:00:19]} Bxd4+ {[%emt 0:00:00] Weighted Error Value: White=0.72/Black=0.11 (very precise)} 0-1

[Event "ITT 1st Parada Jamundi 2022"]
[Site "Jamundi Valle"]
[Date "2022.12.09"]
[Round "6.20"]
[White "Mena Ardila, Alexander"]
[Black "Castro Castro, Joaquin"]
[Result "1-0"]
[ECO "A05"]
[WhiteElo "1956"]
[BlackElo "1797"]
[Annotator "TA"]
[PlyCount "87"]
[EventDate "2022.12.05"]
[EventType "swiss"]
[EventCountry "COL"]
[SourceTitle "playchess.com"]
[Source "ChessBase"]
[SourceQuality "1"]
[TimeControl "5400+30"]

{[%evp 17,87,-5,-2,-14,21,0,8,-25,-6,-15,14,2,18,3,37,42,33,33,36,25,43,6,27,20,45,39,109,98,97,59,48,44,60,-27,-20,-15,479,479,493,480,486,477,480,442,452,449,466,466,449,449,687,441,523,387,380,378,374,270,267,256,633,552,29986,29987,29990,29991,29991,29992,29992,29992,29998,29999]} 1. Nf3 {[%emt 0:02:59]} Nf6 {[%emt 0:00:34]} 2. g3 {[%emt 0:00:07]} g6 {[%emt 0:00:06]} 3. Bg2 {[%emt 0:00:03]} Bg7 {[%emt 0:00:07]} 4. O-O {[%emt 0:00:09]} O-O {[%emt 0:00:07]} 5. d3 {[%emt 0:00:04]} d6 {[%emt 0:01:16]} 6. e4 {[%emt 0:00:10]} c5 {[%emt 0:02:10]} 7. c3 {[%emt 0:00:41]} Nc6 {[%emt 0:01:22]} 8. Nbd2 {[%emt 0:02:58]} Rb8 {[%emt 0:00:39]} 9. a4 {[%emt 0:01:16]} a6 {[%emt 0:03:25]} 10. Qe2 {[%emt 0:04:15] A05: Réti Opening: 1 Nf3 Nf6.} b5 {[%emt 0:03:39]} 11. axb5 {[%emt 0:03:22]} axb5 {[%emt 0:00:17] [#]} 12. Rd1 $146 {[%emt 0:05:01] The position is equal.} ({Predecessor:} 12. e5 dxe5 13. Nxe5 Nxe5 14. Qxe5 Nd7 15. Qf4 b4 16. Ne4 bxc3 17. bxc3 Bb7 18. Ra3 {½-½ (38) Safin,S (2510)-Garcia Ilundain,D (2520) Yerevan 1996}) 12... Qc7 {[%emt 0:07:39]} 13. Nf1 {[%emt 0:02:42]} Bg4 {[%emt 0:04:46]} 14. h3 {[%emt 0:02:25]} Bxf3 {[%emt 0:01:25]} 15. Qxf3 {[%emt 0:00:58]} Ne5 {[%emt 0:02:43]} 16. Qe2 {[%emt 0:00:09]} c4 {[%emt 0:00:55]} 17. d4 {[%emt 0:05:27]} Nd3 {[%emt 0:02:27]} 18. Be3 {[%emt 0:06:33]} Nd7 {[%emt 0:09:47]} 19. Ra2 {[%emt 0:06:48][%cal Ob2b3]} Ra8 {[%emt 0:08:03]} 20. b3 {[%emt 0:03:46]} Rxa2 {[%emt 0:11:32]} 21. Qxa2 {[%emt 0:00:09]} Nb6 {[%emt 0:00:05]} (21... e5 $1 $14) 22. bxc4 $16 {[%emt 0:02:50]} Ra8 {[%emt 0:02:34]} 23. Qc2 {[%emt 0:01:51] aiming for e5.} bxc4 {[%emt 0:00:50]} 24. Nd2 {[%emt 0:02:23]} Ra3 {[%emt 0:07:59]} 25. Nxc4 {[%emt 0:05:15]} Nxc4 $11 {[%emt 0:00:23]} 26. Qxd3 {[%emt 0:06:40]} Nb2 $2 {[%emt 0:00:48][%mdl 8192] [#] A mistake that costs the game.} (26... Nxe3 $11 {and Black has nothing to worry.} 27. Qxe3 Rxc3) 27. Qb5 $1 $18 {[%emt 0:00:09] Intending Qe8+ and mate.} Rxc3 {[%emt 0:08:05]} (27... Nxd1 {is a self mate.} 28. Qe8+ Bf8 29. Bh6) 28. Qxb2 {[%emt 0:00:33]} Rc2 {[%emt 0:00:08]} 29. Qa3 {[%emt 0:02:06]} h5 {[%emt 0:00:36]} 30. d5 {[%emt 0:01:15]} Qb7 {[%emt 0:01:35]} 31. Qa4 {[%emt 0:01:46]} Qc8 {[%emt 0:02:13]} 32. Rb1 {[%emt 0:01:55]} Kh7 {[%emt 0:00:41]} 33. Qa7 {[%emt 0:00:24]} Bf6 {[%emt 0:00:51]} (33... Rc7 $142 34. Qa5 Rc4) 34. Qb7 {[%emt 0:02:52]} Qc4 {[%emt 0:00:55]} 35. g4 {[%emt 0:02:25]} hxg4 {[%emt 0:01:15]} 36. hxg4 {[%emt 0:00:03]} Qe2 {[%emt 0:00:10]} 37. Qb5 {[%emt 0:05:31] Strongly threatening Qe8.} Qxg4 {[%emt 0:01:23]} 38. Qa4 {[%emt 0:03:48]} Qe2 {[%emt 0:05:24] [#]} (38... Rb2 39. Rxb2 Bxb2) 39. Bf3 $1 {[%emt 0:03:53][%mdl 512] White threatens Qe8 and mate.} Ra2 {[%emt 0:02:01]} (39... Qxf3 40. Qxc2) 40. Qe8 {[%emt 0:02:34] White mates.} Qd3 {[%emt 0:02:45]} 41. Qxf7+ {[%emt 0:01:07]} Bg7 {[%emt 0:00:02]} 42. Rb8 {[%emt 0:02:10][%csl Gb8][%cal Rf7g8]} Ra1+ {[%emt 0:00:26]} 43. Kh2 {[%emt 0:00:05][%csl Gb8][%cal Rf7g8]} g5 {[%emt 0:00:54]} 44. Qf5+ {[%emt 0:00:39] Weighted Error Value: White=0.27 (precise) /Black=0.74} 1-0

[Event "ITT 1st Parada Jamundi 2022"]
[Site "Jamundi Valle"]
[Date "2022.12.09"]
[Round "6.21"]
[White "Luligo Bejarano, Luis Angel"]
[Black "Franco, Jhonier"]
[Result "1/2-1/2"]
[ECO "B12"]
[WhiteElo "1675"]
[BlackElo "1900"]
[Annotator "TA"]
[PlyCount "90"]
[EventDate "2022.12.05"]
[EventType "swiss"]
[EventCountry "COL"]
[SourceTitle "playchess.com"]
[Source "ChessBase"]
[SourceQuality "1"]
[TimeControl "5400+30"]

{[%evp 9,90,60,66,43,45,41,53,42,85,56,126,110,118,122,126,132,232,233,231,238,238,237,381,313,314,314,318,317,361,352,361,358,357,318,311,316,316,316,378,380,374,326,408,410,419,399,420,395,437,438,436,435,418,409,420,383,387,387,387,382,494,507,493,488,672,616,622,600,588,448,709,704,940,893,1160,1204,922,928,796,639,358,0,0]} 1. e4 {[%emt 0:04:01]} c6 {[%emt 0:00:29]} 2. d4 {[%emt 0:03:35]} d6 {[%emt 0:00:31]} 3. f4 {[%emt 0:02:35]} Qc7 {[%emt 0:00:27]} 4. Nf3 {[%emt 0:00:21]} Nd7 {[%emt 0:01:15]} 5. Bc4 {[%emt 0:08:17]} e6 {[%emt 0:00:49]} 6. O-O {[%emt 0:02:26] White is more active. B12: Caro-Kann: Advance Variation.} d5 {[%emt 0:00:15]} 7. exd5 {[%emt 0:00:35]} cxd5 {[%emt 0:00:11]} 8. Bd3 {[%emt 0:00:37] [#] White is slightly better.} Ngf6 $146 {[%emt 0:01:04]} ({Predecessor:} 8... Bd6 9. f5 exf5 10. Bxf5 Ndf6 11. Bxc8 Rxc8 12. Nc3 a6 13. Bg5 h6 14. Qe1+ Kf8 15. Bxf6 Nxf6 {1-0 (59) Kolas,T-Opdahl,H Norway 1993}) 9. Qe2 {[%emt 0:02:34]} Bd6 {[%emt 0:02:25]} (9... Nb8 $14) 10. f5 $16 {[%emt 0:04:54]} O-O {[%emt 0:00:26]} 11. fxe6 {[%emt 0:00:31]} fxe6 {[%emt 0:00:14] [#] And now ...e5 would win.} 12. Nc3 {[%emt 0:02:07]} a6 {[%emt 0:00:58]} (12... Qb6 $16) 13. Qxe6+ $18 {[%emt 0:01:20]} Kh8 {[%emt 0:00:17][%cal Od7e5] White must now prevent ...Ne5!} 14. Nxd5 {[%emt 0:00:13]} Nxd5 {[%emt 0:01:49]} 15. Qxd5 {[%emt 0:00:07]} b5 {[%emt 0:05:54]} (15... Nf6 {is a better defense.} 16. Qg5 Be6) 16. Qe4 {[%emt 0:04:15][%csl Gd3][%cal Re4h7]} ({Don't play} 16. Qxa8 Bb7 $18) 16... Nf6 {[%emt 0:00:41]} 17. Qh4 {[%emt 0:00:29]} Bb7 {[%emt 0:01:15]} 18. Bg5 {[%emt 0:01:19]} h6 {[%emt 0:00:19] [#]} 19. Bxh6 $1 {[%emt 0:10:42]} gxh6 {[%emt 0:00:44]} 20. Qxh6+ {[%emt 0:00:04]} Kg8 {[%emt 0:07:47]} 21. Ng5 {[%emt 0:00:34] The board is on fire.} Qg7 {[%emt 0:36:49]} 22. Qxg7+ {[%emt 0:00:59]} Kxg7 {[%emt 0:00:40]} 23. Ne6+ {[%emt 0:00:06]} Kf7 {[%emt 0:03:24]} 24. Nxf8 {[%emt 0:01:03]} Rxf8 {[%emt 0:01:20]} 25. Rae1 {[%emt 0:00:43]} Rg8 {[%emt 0:01:17]} 26. Be4 {[%emt 0:00:44]} Bxe4 {[%emt 0:01:09]} 27. Rxe4 {[%emt 0:00:06]} Rg5 {[%emt 0:02:19]} 28. Re2 {[%emt 0:03:31]} Bf8 {[%emt 0:00:29]} 29. Re5 {[%emt 0:04:53]} Rg4 {[%emt 0:00:22]} 30. c3 {[%emt 0:00:33]} Bd6 {[%emt 0:01:50]} 31. Ref5 {[%emt 0:04:23]} Be7 {[%emt 0:00:23]} 32. a4 {[%emt 0:02:29]} bxa4 {[%emt 0:01:47]} 33. Ra5 {[%emt 0:02:11][%csl LRa4,LRa6]} Re4 {[%emt 0:00:18]} 34. Rxa4 {[%emt 0:01:45]} ({Much less strong is} 34. Rxa6 Re2 35. Rxa4 Rxb2 $18) 34... Re2 {[%emt 0:00:08]} 35. Rxa6 {[%emt 0:00:16]} Rxb2 {[%emt 0:00:16]} 36. g4 {[%emt 0:03:16]} ({Less strong is} 36. Ra7 Re2 37. g3 Ke8 $18) 36... Kg6 {[%emt 0:01:12] Prevents g5.} 37. h4 {[%emt 0:03:10][%cal Bh2h4,Bh4h5,Bh5h6][%mdl 32] g5 is the strong threat.} Kg7 {[%emt 0:00:34]} 38. Re6 {[%emt 0:02:39]} Rb7 {[%emt 0:01:45]} 39. Rf5 {[%emt 0:03:07]} Ng8 {[%emt 0:05:44]} (39... Nxg4 $142 40. c4 Nf6) 40. g5 {[%emt 0:00:39]} Rb2 {[%emt 0:00:55]} 41. h5 {[%emt 0:00:35]} Rc2 {[%emt 0:00:43]} 42. h6+ {[%emt 0:04:38]} Kh8 {[%emt 0:01:01]} 43. Rxe7 {[%emt 0:02:32]} Nxe7 {[%emt 0:00:24]} 44. Rf8+ {[%emt 0:00:05]} Ng8 {[%emt 0:00:03]} 45. g6 $2 {[%emt 0:00:06]} (45. Rc8 $18) 45... Rg2+ {[%emt 0:00:28][%mdl 64] Weighted Error Value: White=0.19 (very precise) /Black=0.37} 1/2-1/2